[Event "Open Nuevo Centro. Jornada 2"]
[Site "Chess.com"]
[Date "2020.06.26"]
[Round "3"]
[White "URSARIU, NIKOLAS VICTOR"]
[Black "Reig Albero, Ferran"]
[Result "0-1"]
[WhiteElo "1060"]
[BlackElo "1797"]
[TimeControl "180+2"]
[EndTime "11:01:06 PDT"]
[Termination "Victoria de Narref por tiempo"]

1. e4 {[%clk 0:03:01.9]} 1... Nf6 {[%clk 0:02:58.7]} 2. Nc3 {[%clk 0:02:59]}
2... d6 {[%clk 0:02:58.9]} 3. Nf3 {[%clk 0:02:58.3]} 3... g6 {[%clk 0:02:59.5]}
4. d4 {[%clk 0:02:57]} 4... Bg7 {[%clk 0:02:53.1]} 5. Bc4 {[%clk 0:02:53.5]}
5... c6 {[%clk 0:02:53.5]} 6. Bf4 {[%clk 0:02:47.6]} 6... b5 {[%clk 0:02:53.1]}
7. Bb3 {[%clk 0:02:43.5]} 7... b4 {[%clk 0:02:53.7]} 8. Ne2 {[%clk 0:02:41.4]}
8... Nxe4 {[%clk 0:02:51.1]} 9. O-O {[%clk 0:02:34]} 9... O-O {[%clk 0:02:49.4]}
10. Qd3 {[%clk 0:02:26.9]} 10... d5 {[%clk 0:02:46]} 11. Nd2 {[%clk 0:02:24]}
11... Bf5 {[%clk 0:02:33.4]} 12. Nxe4 {[%clk 0:02:17.5]} 12... Bxe4 {[%clk
0:02:32.8]} 13. Qd2 {[%clk 0:02:17.4]} 13... Qb6 {[%clk 0:02:29.9]} 14. f3
{[%clk 0:02:12.1]} 14... Bf5 {[%clk 0:02:28.4]} 15. a3 {[%clk 0:01:57.9]} 15...
bxa3 {[%clk 0:02:23.3]} 16. Rxa3 {[%clk 0:01:57.3]} 16... Nd7 {[%clk 0:02:23.8]}
17. Ng3 {[%clk 0:01:49.4]} 17... Bxd4+ {[%clk 0:02:12.6]} 18. Kh1 {[%clk
0:01:44]} 18... Be6 {[%clk 0:01:43.8]} 19. Rd1 {[%clk 0:01:37.3]} 19... Bxb2
{[%clk 0:01:42.7]} 20. Ra2 {[%clk 0:01:34.4]} 20... Bg7 {[%clk 0:01:41.4]} 21.
Be3 {[%clk 0:01:21.8]} 21... Qc7 {[%clk 0:01:27.3]} 22. Bf4 {[%clk 0:01:19]}
22... Be5 {[%clk 0:01:17.2]} 23. Be3 {[%clk 0:01:08.3]} 23... Nb6 {[%clk
0:01:09]} 24. f4 {[%clk 0:01:01.4]} 24... Bf6 {[%clk 0:00:55.2]} 25. Rda1 {[%clk
0:00:53.3]} 25... c5 {[%clk 0:00:54.8]} 26. Qc3 {[%clk 0:00:36.7]} 26... Bxc3
{[%clk 0:00:53.5]} 27. Rxa7 {[%clk 0:00:26]} 27... Rxa7 {[%clk 0:00:51.7]} 28.
Rxa7 {[%clk 0:00:24.9]} 28... Qxa7 {[%clk 0:00:52.3]} 29. Ne2 {[%clk 0:00:19.6]}
29... d4 {[%clk 0:00:47.4]} 30. Bf2 {[%clk 0:00:17.1]} 30... Bxb3 {[%clk
0:00:46.7]} 31. cxb3 {[%clk 0:00:16.9]} 31... Nd5 {[%clk 0:00:43]} 32. h3 {[%clk
0:00:13.1]} 32... d3 {[%clk 0:00:39.7]} 33. Nc1 {[%clk 0:00:07.7]} 33... d2
{[%clk 0:00:37.9]} 34. Ne2 {[%clk 0:00:05.9]} 34... d1=Q+ {[%clk 0:00:37.7]} 35.
Kh2 {[%clk 0:00:06.3]} 35... Qxe2 {[%clk 0:00:37.5]} 36. Kg3 {[%clk 0:00:07.7]}
36... Nxf4 {[%clk 0:00:36.8]} 37. Bg1 {[%clk 0:00:05.4]} 37... e5 {[%clk
0:00:33.5]} 0

[Event "Open Nuevo Centro. Jornada 2"]
[Site "Chess.com"]
[Date "2020.06.26"]
[Round "3"]
[White "Rodriguez Rodriguez, Joan David "]
[Black "Marín Corresa, Arturo"]
[Result "0-1"]
[WhiteElo "1610"]
[BlackElo "2206"]
[TimeControl "180+2"]
[EndTime "11:01:09 PDT"]
[Termination "Victoria de Estivella por tiempo"]

1. d4 {[%clk 0:03:01.9]} 1... Nf6 {[%clk 0:03:00]} 2. c4 {[%clk 0:03:03]} 2...
e6 {[%clk 0:03:00.7]} 3. Nc3 {[%clk 0:03:03.8]} 3... Bb4 {[%clk 0:03:01.1]} 4.
Qc2 {[%clk 0:03:04.5]} 4... c5 {[%clk 0:02:56.8]} 5. dxc5 {[%clk 0:03:04.8]}
5... Bxc5 {[%clk 0:02:53.1]} 6. Nf3 {[%clk 0:03:03.9]} 6... a6 {[%clk 0:02:53]}
7. Bf4 {[%clk 0:02:57.7]} 7... Nc6 {[%clk 0:02:50.2]} 8. a3 {[%clk 0:02:57.6]}
8... Be7 {[%clk 0:02:42.1]} 9. Rd1 {[%clk 0:02:57.2]} 9... Nh5 {[%clk
0:02:30.1]} 10. Bd6 {[%clk 0:02:47.4]} 10... Bxd6 {[%clk 0:02:29.9]} 11. Rxd6
{[%clk 0:02:49.3]} 11... Qe7 {[%clk 0:02:20.2]} 12. Rd1 {[%clk 0:02:40.5]} 12...
f5 {[%clk 0:02:12.7]} 13. e3 {[%clk 0:02:39.7]} 13... O-O {[%clk 0:02:11.9]} 14.
Be2 {[%clk 0:02:40.3]} 14... Nf6 {[%clk 0:02:11.9]} 15. O-O {[%clk 0:02:40.1]}
15... b6 {[%clk 0:02:08.8]} 16. Na4 {[%clk 0:02:17.1]} 16... Rb8 {[%clk
0:02:08.7]} 17. c5 {[%clk 0:02:05.4]} 17... bxc5 {[%clk 0:01:42]} 18. Nxc5
{[%clk 0:02:01.9]} 18... a5 {[%clk 0:01:42.4]} 19. Rd2 {[%clk 0:01:47.7]} 19...
Bb7 {[%clk 0:01:07.9]} 20. Nxb7 {[%clk 0:01:42.8]} 20... Rxb7 {[%clk 0:01:08]}
21. Rfd1 {[%clk 0:01:35.4]} 21... Rfb8 {[%clk 0:01:07.5]} 22. Qc3 {[%clk
0:01:28.5]} 22... Rb3 {[%clk 0:01:01.8]} 23. Qc1 {[%clk 0:01:22.8]} 23... R3b6
{[%clk 0:00:57.6]} 24. a4 {[%clk 0:01:14.8]} 24... d5 {[%clk 0:00:57.4]} 25. Bb5
{[%clk 0:01:14.1]} 25... Nb4 {[%clk 0:00:55.3]} 26. Nd4 {[%clk 0:01:07]} 26...
Ne4 {[%clk 0:00:47]} 27. Re2 {[%clk 0:01:01.5]} 27... h6 {[%clk 0:00:47.2]} 28.
f3 {[%clk 0:00:58.4]} 28... Nd6 {[%clk 0:00:47.6]} 29. Qd2 {[%clk 0:00:55.3]}
29... Rc8 {[%clk 0:00:42.1]} 30. Rc1 {[%clk 0:00:51.2]} 30... Rbb8 {[%clk
0:00:41.3]} 31. Nc6 {[%clk 0:00:33.6]} 31... Nxc6 {[%clk 0:00:41.1]} 32. Bxc6
{[%clk 0:00:32.8]} 32... Nc4 {[%clk 0:00:40.2]} 33. Qd4 {[%clk 0:00:22.4]} 33...
Rxc6 {[%clk 0:00:39.8]} 34. Rec2 {[%clk 0:00:19.4]} 34... Rcb6 {[%clk 0:00:37]}
35. Rb1 {[%clk 0:00:08.4]} 35... Qb4 {[%clk 0:00:34.2]} 36. Kf2 {[%clk
0:00:06.3]} 36... Na3 {[%clk 0:00:32.4]} 37. Qxb4 {[%clk 0:00:02.5]} 37... Rxb4
{[%clk 0:00:32.7]} 0

[Event "Open Nuevo Centro. Jornada 2"]
[Site "Chess.com"]
[Date "2020.06.26"]
[Round "3"]
[White "Cebolla Ruiz, David"]
[Black "Valverde Caballero, Rafael"]
[Result "0-1"]
[WhiteElo "1568"]
[BlackElo "1913"]
[TimeControl "180+2"]
[EndTime "11:01:23 PDT"]
[Termination "Victoria de Eumenes por abandono"]

1. e4 {[%clk 0:03:00.9]} 1... c5 {[%clk 0:02:58.5]} 2. Nf3 {[%clk 0:03:01.3]}
2... Nc6 {[%clk 0:02:57.8]} 3. d4 {[%clk 0:03:02.1]} 3... cxd4 {[%clk
0:02:58.6]} 4. Nxd4 {[%clk 0:03:04]} 4... e5 {[%clk 0:02:59.9]} 5. Nb5 {[%clk
0:03:03.1]} 5... d6 {[%clk 0:02:58.8]} 6. N1c3 {[%clk 0:03:03.9]} 6... a6 {[%clk
0:02:59.2]} 7. Na3 {[%clk 0:03:04.8]} 7... Be6 {[%clk 0:02:53.9]} 8. Nd5 {[%clk
0:02:23.5]} 8... Nf6 {[%clk 0:02:51.4]} 9. Bg5 {[%clk 0:02:20.4]} 9... Bxd5
{[%clk 0:02:49.8]} 10. exd5 {[%clk 0:02:20.4]} 10... Qa5+ {[%clk 0:02:48.9]} 11.
c3 {[%clk 0:02:11.4]} 11... Qxd5 {[%clk 0:02:41.8]} 12. Bxf6 {[%clk 0:02:12.1]}
12... Qe4+ {[%clk 0:02:07.4]} 13. Qe2 {[%clk 0:02:11.3]} 13... Qxe2+ {[%clk
0:02:04.5]} 14. Bxe2 {[%clk 0:02:12.1]} 14... gxf6 {[%clk 0:02:05.9]} 15. O-O-O
{[%clk 0:02:09.3]} 15... O-O-O {[%clk 0:02:01.7]} 16. Nc4 {[%clk 0:02:08.7]}
16... Kc7 {[%clk 0:01:40.3]} 17. Bh5 {[%clk 0:01:55.2]} 17... Rd7 {[%clk
0:01:33.7]} 18. Bg4 {[%clk 0:01:51.5]} 18... Rd8 {[%clk 0:01:24.1]} 19. Bh5
{[%clk 0:01:52.2]} 19... d5 {[%clk 0:01:19.2]} 20. Na3 {[%clk 0:01:08.7]} 20...
Bxa3 {[%clk 0:01:17.4]} 21. bxa3 {[%clk 0:01:09.5]} 21... Rhf8 {[%clk 0:01:15]}
22. Rhe1 {[%clk 0:01:03]} 22... f5 {[%clk 0:01:10.9]} 23. Bf3 {[%clk 0:00:45.3]}
23... e4 {[%clk 0:00:53.1]} 24. Bh5 {[%clk 0:00:37.8]} 24... d4 {[%clk
0:00:53.3]} 25. cxd4 {[%clk 0:00:32]} 25... Rxd4 {[%clk 0:00:52.7]} 26. Rxd4
{[%clk 0:00:27.1]} 26... Nxd4 {[%clk 0:00:53.4]} 27. Rd1 {[%clk 0:00:25.5]}
27... Nb5 {[%clk 0:00:39.7]} 28. a4 {[%clk 0:00:20.3]} 28... Nc3 {[%clk
0:00:38.8]} 29. Rd2 {[%clk 0:00:18.5]} 29... Nxa4 {[%clk 0:00:38.3]} 30. Rc2+
{[%clk 0:00:16.9]} 30... Kb6 {[%clk 0:00:38.7]} 31. f3 {[%clk 0:00:13.5]} 31...
Nc5 {[%clk 0:00:39]} 32. Rb2+ {[%clk 0:00:13.2]} 32... Kc6 {[%clk 0:00:38.2]}
33. Rc2 {[%clk 0:00:14]} 33... b6 {[%clk 0:00:37.3]} 34. fxe4 {[%clk 0:00:14.3]}
34... fxe4 {[%clk 0:00:38.4]} 35. Be2 {[%clk 0:00:13.6]} 35... a5 {[%clk
0:00:37.6]} 36. Bf1 {[%clk 0:00:12.5]} 36... f5 {[%clk 0:00:38.9]} 37. Kb2
{[%clk 0:00:11.9]} 37... Rd8 {[%clk 0:00:39.6]} 38. Bc4 {[%clk 0:00:11]} 38...
Rd4 {[%clk 0:00:40.4]} 39. Bg8 {[%clk 0:00:11]} 39... Rb4+ {[%clk 0:00:40.9]}
40. Kc1 {[%clk 0:00:11.6]} 40... h6 {[%clk 0:00:41.9]} 41. Bh7 {[%clk
0:00:11.5]} 41... f4 {[%clk 0:00:43.2]} 42. Bxe4+ {[%clk 0:00:11.6]} 42... Rxe4
{[%clk 0:00:43.5]} 43. g3 {[%clk 0:00:11.7]} 43... f3 {[%clk 0:00:43.3]} 44. Rf2
{[%clk 0:00:12.4]} 44... Nd3+ {[%clk 0:00:43.8]} 45. Kd2 {[%clk 0:00:13.7]}
45... Nxf2 {[%clk 0:00:45.7]} 46. Kc1 {[%clk 0:00:14.5]} 46... Re2 {[%clk
0:00:46.5]} 47. g4 {[%clk 0:00:15.7]} 47... Nxg4 {[%clk 0:00:47.8]} 48. h3
{[%clk 0:00:17]} 48... f2 {[%clk 0:00:49.1]} 0

[Event "Open Nuevo Centro. Jornada 2"]
[Site "Chess.com"]
[Date "2020.06.26"]
[Round "3"]
[White "Gálvez Torres, Guillermo"]
[Black "Amorós Pérez, Manuel David"]
[Result "1-0"]
[WhiteElo "1096"]
[BlackElo "1642"]
[TimeControl "180+2"]
[EndTime "11:01:23 PDT"]
[Termination "Victoria de Bgtron por jaque mate"]

1. c4 {[%clk 0:03:01.9]} 1... d5 {[%clk 0:02:55.1]} 2. cxd5 {[%clk 0:03:01.6]}
2... Qxd5 {[%clk 0:02:56.1]} 3. Nc3 {[%clk 0:03:01.3]} 3... Qd8 {[%clk
0:02:56.7]} 4. g3 {[%clk 0:02:53.9]} 4... c6 {[%clk 0:02:57]} 5. Bg2 {[%clk
0:02:53.4]} 5... Nf6 {[%clk 0:02:55.5]} 6. e3 {[%clk 0:02:50.6]} 6... Nbd7
{[%clk 0:02:52.4]} 7. Nge2 {[%clk 0:02:51.7]} 7... Nb6 {[%clk 0:02:53.3]} 8. O-O
{[%clk 0:02:51.3]} 8... Bg4 {[%clk 0:02:51.2]} 9. Re1 {[%clk 0:02:50.4]} 9... e6
{[%clk 0:02:51.5]} 10. b3 {[%clk 0:02:51.5]} 10... Bb4 {[%clk 0:02:50.8]} 11.
Bb2 {[%clk 0:02:52.2]} 11... Bxc3 {[%clk 0:02:49.5]} 12. Bxc3 {[%clk 0:02:50.7]}
12... Nbd5 {[%clk 0:02:50.6]} 13. Bb2 {[%clk 0:02:47.9]} 13... O-O {[%clk
0:02:50.7]} 14. Qc2 {[%clk 0:02:48.3]} 14... Bxe2 {[%clk 0:02:49.1]} 15. Rxe2
{[%clk 0:02:47.8]} 15... Nb4 {[%clk 0:02:47.7]} 16. Qc4 {[%clk 0:02:37.1]} 16...
Nd3 {[%clk 0:02:41.6]} 17. Bd4 {[%clk 0:02:26.2]} 17... e5 {[%clk 0:02:28.1]}
18. Qxd3 {[%clk 0:02:22.5]} 18... exd4 {[%clk 0:02:28.1]} 19. Qxd4 {[%clk
0:02:23]} 19... Qxd4 {[%clk 0:02:28.5]} 20. exd4 {[%clk 0:02:24]} 20... Rad8
{[%clk 0:02:30]} 21. Rae1 {[%clk 0:02:17.5]} 21... Rxd4 {[%clk 0:02:29.3]} 22.
f4 {[%clk 0:02:08.4]} 22... Rfd8 {[%clk 0:02:22.8]} 23. Rd1 {[%clk 0:01:51.1]}
23... h6 {[%clk 0:02:18.3]} 24. Kf2 {[%clk 0:01:42.4]} 24... Ng4+ {[%clk
0:02:16.1]} 25. Kg1 {[%clk 0:01:34.3]} 25... Nf6 {[%clk 0:02:06.4]} 26. h3
{[%clk 0:01:28.8]} 26... a6 {[%clk 0:02:06.6]} 27. Kf1 {[%clk 0:01:27.5]} 27...
Rd3 {[%clk 0:02:06.1]} 28. g4 {[%clk 0:01:15.2]} 28... Nd5 {[%clk 0:02:03.1]}
29. Bxd5 {[%clk 0:01:02.4]} 29... R8xd5 {[%clk 0:02:00]} 30. h4 {[%clk
0:01:00.5]} 30... R3d4 {[%clk 0:01:59.7]} 31. Rf2 {[%clk 0:00:58.3]} 31... Rd3
{[%clk 0:01:58.7]} 32. Ke2 {[%clk 0:00:56.1]} 32... b6 {[%clk 0:01:57.1]} 33.
Rf3 {[%clk 0:00:52]} 33... R3d4 {[%clk 0:01:57.2]} 34. d3 {[%clk 0:00:48.4]}
34... c5 {[%clk 0:01:57.9]} 35. Re3 {[%clk 0:00:29.2]} 35... Rxf4 {[%clk
0:01:56.7]} 36. Re8+ {[%clk 0:00:25.5]} 36... Kh7 {[%clk 0:01:57.2]} 37. Re4
{[%clk 0:00:23.5]} 37... Rxe4+ {[%clk 0:01:52.3]} 38. dxe4 {[%clk 0:00:22.9]}
38... Rxd1 {[%clk 0:01:52.2]} 39. Kxd1 {[%clk 0:00:23.3]} 39... Kg6 {[%clk
0:01:48.9]} 40. e5 {[%clk 0:00:21]} 40... f6 {[%clk 0:01:48.9]} 41. e6 {[%clk
0:00:21.1]} 41... h5 {[%clk 0:01:44.8]} 42. gxh5+ {[%clk 0:00:21]} 42... Kxh5
{[%clk 0:01:41.6]} 43. e7 {[%clk 0:00:22]} 43... g5 {[%clk 0:01:42.6]} 44. e8=Q+
{[%clk 0:00:22.2]} 44... Kxh4 {[%clk 0:01:43.3]} 45. Qh8+ {[%clk 0:00:22.8]}
45... Kg3 {[%clk 0:01:44.2]} 46. Qxf6 {[%clk 0:00:23.6]} 46... g4 {[%clk
0:01:45.6]} 47. Qe5+ {[%clk 0:00:23.8]} 47... Kg2 {[%clk 0:01:46.7]} 48. Qe3
{[%clk 0:00:22.4]} 48... g3 {[%clk 0:01:47.7]} 49. Qe2+ {[%clk 0:00:19.7]} 49...
Kh1 {[%clk 0:01:48.8]} 50. Qf1+ {[%clk 0:00:18.3]} 50... Kh2 {[%clk 0:01:49.7]}
51. Qf5 {[%clk 0:00:15.9]} 51... g2 {[%clk 0:01:50.7]} 52. Qh5+ {[%clk
0:00:16.5]} 52... Kg1 {[%clk 0:01:51.6]} 53. Qg5 {[%clk 0:00:17.4]} 53... Kf2
{[%clk 0:01:52.6]} 54. Qf5+ {[%clk 0:00:17.7]} 54... Ke3 {[%clk 0:01:51]} 55.
Qg4 {[%clk 0:00:17.6]} 55... Kf2 {[%clk 0:01:52.2]} 56. Qf4+ {[%clk 0:00:17]}
56... Kg1 {[%clk 0:01:53.6]} 57. Ke2 {[%clk 0:00:15.2]} 57... Kh1 {[%clk
0:01:54.4]} 58. Qh4+ {[%clk 0:00:15.9]} 58... Kg1 {[%clk 0:01:55.2]} 59. Qf2+
{[%clk 0:00:16.3]} 59... Kh2 {[%clk 0:01:56]} 60. Qf4+ {[%clk 0:00:16.4]} 60...
Kh1 {[%clk 0:01:57]} 61. Qh4+ {[%clk 0:00:14.8]} 61... Kg1 {[%clk 0:01:58]} 62.
Kf3 {[%clk 0:00:15.7]} 62... Kf1 {[%clk 0:01:59.3]} 63. Qf2# {[%clk 0:00:13.5]}
1

[Event "Open Nuevo Centro. Jornada 2"]
[Site "Chess.com"]
[Date "2020.06.26"]
[Round "3"]
[White "Lloret Ramis, Juan José"]
[Black "Remolar Gallen, Jose"]
[Result "0-1"]
[WhiteElo "1973"]
[BlackElo "2356"]
[TimeControl "180+2"]
[EndTime "11:01:27 PDT"]
[Termination "Victoria de ChessMonguer por tiempo"]

1. c4 {[%clk 0:03:01.9]} 1... d6 {[%clk 0:03:00.3]} 2. Nc3 {[%clk 0:03:01.5]}
2... Nf6 {[%clk 0:03:01.9]} 3. d4 {[%clk 0:03:02.3]} 3... g6 {[%clk 0:03:03.6]}
4. e4 {[%clk 0:03:03.3]} 4... Bg7 {[%clk 0:03:05.1]} 5. Nf3 {[%clk 0:03:04.1]}
5... O-O {[%clk 0:03:06.5]} 6. Be2 {[%clk 0:03:05]} 6... e5 {[%clk 0:03:08]} 7.
dxe5 {[%clk 0:03:06.1]} 7... dxe5 {[%clk 0:03:09.9]} 8. Qxd8 {[%clk 0:03:07.1]}
8... Rxd8 {[%clk 0:03:11.3]} 9. Bg5 {[%clk 0:03:08.4]} 9... Re8 {[%clk
0:03:10.4]} 10. Nd5 {[%clk 0:03:09.6]} 10... Nxd5 {[%clk 0:03:08.6]} 11. cxd5
{[%clk 0:03:11.1]} 11... h6 {[%clk 0:03:03.8]} 12. Be3 {[%clk 0:03:10.9]} 12...
c6 {[%clk 0:03:01.6]} 13. Bc4 {[%clk 0:03:10.7]} 13... b5 {[%clk 0:03:02.5]} 14.
Bb3 {[%clk 0:03:11]} 14... a5 {[%clk 0:03:04.1]} 15. a4 {[%clk 0:03:04]} 15...
Ba6 {[%clk 0:02:52]} 16. Nd2 {[%clk 0:01:35.7]} 16... bxa4 {[%clk 0:01:53.6]}
17. Bxa4 {[%clk 0:01:23.8]} 17... Bb5 {[%clk 0:01:54.6]} 18. Bb3 {[%clk
0:00:57.7]} 18... a4 {[%clk 0:01:50.9]} 19. Ba2 {[%clk 0:00:49.6]} 19... Na6
{[%clk 0:01:51.4]} 20. Nc4 {[%clk 0:00:41.9]} 20... Nb4 {[%clk 0:01:48.4]} 21.
Na3 {[%clk 0:00:21.5]} 21... Bd3 {[%clk 0:01:42.1]} 22. dxc6 {[%clk 0:00:18.4]}
22... Rec8 {[%clk 0:01:25.5]} 23. Bd5 {[%clk 0:00:17.2]} 23... Bf8 {[%clk
0:01:08.5]} 24. Kd2 {[%clk 0:00:16.8]} 24... Nxd5 {[%clk 0:00:57.2]} 25. exd5
{[%clk 0:00:17]} 25... Be4 {[%clk 0:00:58.8]} 26. Nc4 {[%clk 0:00:15.3]} 26...
Bxg2 {[%clk 0:00:43.6]} 27. Rhg1 {[%clk 0:00:14.9]} 27... Bxd5 {[%clk
0:00:44.9]} 28. Nb6 {[%clk 0:00:14.7]} 28... Bxc6 {[%clk 0:00:45.9]} 29. Nxa8
{[%clk 0:00:14.1]} 29... Rxa8 {[%clk 0:00:47.2]} 30. Rgc1 {[%clk 0:00:13.9]}
30... Bb5 {[%clk 0:00:45.3]} 31. Bc5 {[%clk 0:00:13.7]} 31... Rd8+ {[%clk
0:00:43.7]} 32. Ke3 {[%clk 0:00:14.1]} 32... Rd3+ {[%clk 0:00:36.5]} 33. Ke4
{[%clk 0:00:12.6]} 33... Bg7 {[%clk 0:00:31.9]} 34. Be3 {[%clk 0:00:11.3]} 34...
f5+ {[%clk 0:00:30.8]} 35. Kf3 {[%clk 0:00:10]} 35... f4 {[%clk 0:00:30.2]} 36.
Rc5 {[%clk 0:00:11.5]} 36... Rb3 {[%clk 0:00:24.1]} 37. Rd1 {[%clk 0:00:08.7]}
37... fxe3 {[%clk 0:00:22.3]} 38. fxe3 {[%clk 0:00:05.7]} 38... Rxb2 {[%clk
0:00:19.6]} 39. Rd8+ {[%clk 0:00:05]} 39... Kh7 {[%clk 0:00:20.7]} 0

[Event "Open Nuevo Centro. Jornada 2"]
[Site "Chess.com"]
[Date "2020.06.26"]
[Round "3"]
[White "Silva Rodriguez, Fernando"]
[Black "Gil López, Alejandro"]
[Result "0-1"]
[WhiteElo "2488"]
[BlackElo "2113"]
[TimeControl "180+2"]
[EndTime "11:02:07 PDT"]
[Termination "Victoria de AglVal0313 por tiempo"]

1. d4 {[%clk 0:03:01.9]} 1... e5 {[%clk 0:03:00.3]} 2. dxe5 {[%clk 0:03:02.5]}
2... d6 {[%clk 0:03:01.8]} 3. Nf3 {[%clk 0:02:58.8]} 3... Nc6 {[%clk 0:03:02.3]}
4. Bf4 {[%clk 0:02:55.2]} 4... Bg4 {[%clk 0:03:02.4]} 5. exd6 {[%clk 0:02:51.7]}
5... Qf6 {[%clk 0:03:03]} 6. Qc1 {[%clk 0:02:40.7]} 6... Bxd6 {[%clk 0:02:59.7]}
7. Bxd6 {[%clk 0:02:36.6]} 7... Qxd6 {[%clk 0:03:01]} 8. Qe3+ {[%clk 0:02:21.7]}
8... Nge7 {[%clk 0:02:56.3]} 9. Nbd2 {[%clk 0:02:10.8]} 9... O-O-O {[%clk
0:02:56.7]} 10. O-O-O {[%clk 0:02:09.6]} 10... Nd5 {[%clk 0:02:51.7]} 11. Qb3
{[%clk 0:02:07.4]} 11... Ndb4 {[%clk 0:02:26.8]} 12. c3 {[%clk 0:01:51.4]} 12...
Be6 {[%clk 0:02:21.9]} 13. Qa4 {[%clk 0:01:25.7]} 13... Na6 {[%clk 0:02:21.3]}
14. e3 {[%clk 0:01:01.4]} 14... Nc5 {[%clk 0:02:19.3]} 15. Qa3 {[%clk
0:00:58.4]} 15... Nd3+ {[%clk 0:02:17.8]} 16. Bxd3 {[%clk 0:00:59.1]} 16... Qxd3
{[%clk 0:02:18.9]} 17. Rhe1 {[%clk 0:00:47.3]} 17... Bf5 {[%clk 0:02:09.5]} 18.
e4 {[%clk 0:00:45.5]} 18... Be6 {[%clk 0:02:10.4]} 19. Nb3 {[%clk 0:00:43.3]}
19... Qc4 {[%clk 0:02:07.7]} 20. Nbd4 {[%clk 0:00:40.9]} 20... Nxd4 {[%clk
0:02:05.3]} 21. Nxd4 {[%clk 0:00:42.8]} 21... Kb8 {[%clk 0:01:53.2]} 22. Nxe6
{[%clk 0:00:40.4]} 22... Qxe6 {[%clk 0:01:50.4]} 23. h3 {[%clk 0:00:15.9]} 23...
Qg6 {[%clk 0:01:44.8]} 24. g3 {[%clk 0:00:11.3]} 24... Rxd1+ {[%clk 0:01:42]}
25. Kxd1 {[%clk 0:00:13.2]} 25... Rd8+ {[%clk 0:01:41.9]} 26. Kc2 {[%clk
0:00:11.4]} 26... Qf6 {[%clk 0:01:37.4]} 27. Re2 {[%clk 0:00:11.1]} 27... Qf3
{[%clk 0:01:35.7]} 28. Rd2 {[%clk 0:00:04]} 28... Rxd2+ {[%clk 0:01:36.6]} 29.
Kxd2 {[%clk 0:00:05.9]} 29... Qxf2+ {[%clk 0:01:38.1]} 30. Kd3 {[%clk
0:00:07.8]} 30... Qxg3+ {[%clk 0:01:37.5]} 31. Kc2 {[%clk 0:00:09.2]} 31... Qf2+
{[%clk 0:01:33.8]} 32. Kd3 {[%clk 0:00:09.1]} 32... a6 {[%clk 0:01:26.7]} 33.
Qf8+ {[%clk 0:00:09.3]} 33... Ka7 {[%clk 0:01:27.8]} 34. Qxg7 {[%clk 0:00:10.9]}
34... Qf3+ {[%clk 0:01:25.6]} 35. Kd4 {[%clk 0:00:07]} 35... Qf2+ {[%clk
0:01:22.7]} 36. Ke5 {[%clk 0:00:06]} 36... Qxb2 {[%clk 0:01:22.6]} 37. Qxh7
{[%clk 0:00:05]} 37... Qxc3+ {[%clk 0:01:20.8]} 38. Kf5 {[%clk 0:00:06.6]} 38...
Qf3+ {[%clk 0:01:16.6]} 39. Ke5 {[%clk 0:00:05.6]} 39... f6+ {[%clk 0:01:14.3]}
40. Ke6 {[%clk 0:00:06]} 40... Qf4 {[%clk 0:01:12.1]} 41. Qf5 {[%clk 0:00:05.9]}
41... Qh4 {[%clk 0:01:06.2]} 42. Qc5+ {[%clk 0:00:04.3]} 42... Kb8 {[%clk
0:01:05.7]} 43. Qf8+ {[%clk 0:00:05.4]} 43... Ka7 {[%clk 0:01:07]} 44. Qc5+
{[%clk 0:00:06.8]} 44... Kb8 {[%clk 0:01:08.4]} 45. Qf5 {[%clk 0:00:08.4]} 45...
b6 {[%clk 0:01:01.5]} 46. Qg4 {[%clk 0:00:07.2]} 46... Qh8 {[%clk 0:00:53.3]}
47. Qf5 {[%clk 0:00:05.4]} 47... Qh4 {[%clk 0:00:48.3]} 48. Kf7 {[%clk
0:00:04.2]} 48... Ka7 {[%clk 0:00:25.6]} 49. Qg4 {[%clk 0:00:03]} 49... Qh6
{[%clk 0:00:23.7]} 0